fUSD/lending_fUSD_20250321
["ID","MTS","AMOUNT","RATE_DAILY","PERIOD"]
[356513486,1742590854948,-689.41,0.00047123,120]
[356513487,1742590854979,-500.0,0.00047123,120]
[356513488,1742590855011,-500.0,0.00047123,120]
[356513489,1742590855043,-500.0,0.00047123,120]
[356513490,1742590855075,-581.85,0.00047123,120]
[356513491,1742590855107,-569.06562916,0.00047123,120]
[356513492,1742590855138,-648.26,0.00047123,120]
[356513493,1742590855171,-671.32,0.00047123,120]
[356513494,1742590855205,-500.0,0.00047123,120]
[356513495,1742590855235,-500.0,0.00047123,120]
[356513496,1742590855265,-532.75232495,0.00047123,120]
[356513497,1742590855296,-500.0,0.00047123,120]
[356513498,1742590855326,-567.87,0.00047123,120]
[356513499,1742590855356,-525.58445227,0.00047123,120]
[356513500,1742590855387,-608.44,0.00047123,120]
[356513501,1742590855417,-500.0,0.00047123,120]
[356513502,1742590855449,-4374.94,0.00047123,120]
[356513503,1742590855480,-658.05,0.00047123,120]
[356513504,1742590855511,-500.0,0.00047123,120]
[356513505,1742590855541,-3896.81,0.00047123,120]
[356513506,1742590855572,-500.0,0.00047123,120]
[356513507,1742590855603,-500.0,0.00047123,120]
[356513508,1742590855634,-500.0,0.00047123,120]
[356513509,1742590855664,-500.0,0.00047123,120]
[356513510,1742590855694,-847.72,0.00047123,120]
[356513511,1742590855724,-500.0,0.00047123,120]
[356513512,1742590855754,-1015.21,0.00047123,120]
[356513513,1742590855783,-2407.4,0.00047123,120]
[356513514,1742590855813,-500.0,0.00047123,120]
[356513515,1742590855844,-1413.71,0.00047123,120]
[356513516,1742590855874,-500.0,0.00047123,120]
[356513517,1742590855903,-515.14129522,0.00047123,120]
[356513518,1742590855932,-500.0,0.00047123,120]
[356513519,1742590855963,-500.0,0.00047123,120]
[356513520,1742590855992,-500.0,0.00047123,120]
[356513521,1742590856022,-775.79,0.00047123,120]
[356513522,1742590856052,-1086.59,0.00047123,120]
[356513523,1742590856082,-500.0,0.00047123,120]
[356513524,1742590856111,-500.0,0.00047123,120]
[356513525,1742590856143,-1133.4,0.00047123,120]
[356513526,1742590856173,-1032.62,0.00047123,120]
[356513527,1742590856204,-500.0,0.00047123,120]
[356513528,1742590856234,-500.0,0.00047123,120]
[356513529,1742590856264,-2218.79,0.00047123,120]
[356513530,1742590856294,-1504.83,0.00047123,120]
[356513531,1742590856325,-1855.87,0.00047123,120]
[356513532,1742590856356,-500.0,0.00047123,120]
[356513533,1742590856388,-500.0,0.00047123,120]
[356513534,1742590856419,-500.0,0.00047123,120]
[356513535,1742590856449,-500.0,0.00047123,120]
[356513536,1742590856478,-828.32,0.00047123,120]
[356513537,1742590856508,-4212.61,0.00047123,120]
[356513538,1742590856538,-1776.45,0.00047123,120]
[356513539,1742590856566,-573.44,0.00047123,120]
[356513540,1742590856595,-500.0,0.00047123,120]
[356513541,1742590856624,-10277.33,0.00047123,120]
[356513542,1742590856653,-308.54418553,0.00047123,120]
[356513543,1742590856682,-827.23,0.00047123,120]
[356513544,1742590856711,-500.0,0.00047123,120]
[356513545,1742590856740,-1126.9,0.00047123,120]
[356513546,1742590856769,-899.51,0.00047123,120]
[356513547,1742590856799,-1834.73,0.00047123,120]
[356513548,1742590856828,-500.0,0.00047123,120]
[356513549,1742590856857,-500.0,0.00047123,120]
[356513550,1742590856884,-500.0,0.00047123,120]
[356513551,1742590856913,-1042.62,0.00047123,120]
[356513552,1742590856942,-500.0,0.00047123,120]
[356513553,1742590856970,-2370.96,0.00047123,120]
[356513554,1742590856998,-3771.83,0.00047123,120]
[356513555,1742590857026,-500.0,0.00047123,120]
[356513556,1742590857055,-673.02,0.00047123,120]
[356513557,1742590857084,-1010.34,0.00047123,120]
[356513558,1742590857113,-500.0,0.00047123,120]
[356513559,1742590857142,-1229.02,0.00047123,120]
[356513560,1742590857311,-7320.96,0.00047123,120]
[356513561,1742590857342,-1367.01,0.00047123,120]
[356513562,1742590857372,-1102.62,0.00047123,120]
[356513563,1742590857401,-634.03,0.00047123,120]
[356513564,1742590857431,-500.0,0.00047123,120]
[356513565,1742590857460,-875.96,0.00047123,120]
[356513566,1742590857489,-2379.92,0.00047123,120]
[356513567,1742590857517,-632.77,0.00047123,120]
[356513568,1742590857547,-500.0,0.00047123,120]
[356513569,1742590857576,-1590.67,0.00047123,120]
[356513570,1742590857607,-2243.09,0.00047123,120]
[356513571,1742590857640,-500.0,0.00047123,120]
[356513572,1742590857670,-500.0,0.00047123,120]
[356513573,1742590857700,-1314.42,0.00047123,120]
[356513574,1742590857729,-2195.2,0.00047123,120]
[356513575,1742590857760,-500.0,0.00047123,120]
[356513576,1742590857789,-542.35,0.00047123,120]
[356513577,1742590857818,-530.67549109,0.00047123,120]
[356513578,1742590857847,-500.0,0.00047123,120]
[356513579,1742590857876,-751.58,0.00047123,120]
[356513580,1742590857903,-500.0,0.00047123,120]
[356513581,1742590857932,-1473.81,0.00047123,120]
[356513582,1742590857961,-500.0,0.00047123,120]
[356513583,1742590857989,-500.0,0.00047123,120]
[356513584,1742590858017,-718.58,0.00047123,120]
[356513585,1742590858045,-500.0,0.00047123,120]
[356513586,1742590858073,-613.62,0.00047123,120]
[356513587,1742590858104,-500.0,0.00047123,120]
[356513588,1742590858134,-733.08,0.00047123,120]
[356513589,1742590858164,-716.19,0.00047123,120]
[356513590,1742590858193,-500.0,0.00047123,120]
[356513591,1742590858221,-500.0,0.00047123,120]
[356513592,1742590858250,-500.0,0.00047123,120]
[356513593,1742590858280,-505.89,0.00047123,120]
[356513594,1742590858310,-958.6,0.00047123,120]
[356513595,1742590858338,-500.0,0.00047123,120]
[356513596,1742590858375,-500.0,0.00047123,120]
[356513597,1742590858432,-500.0,0.00047123,120]
[356513598,1742590858484,-628.25820406,0.00047123,120]
[356513599,1742590858539,-695.76,0.00047123,120]
[356513600,1742590858593,-6397.29,0.00047123,120]
[356513601,1742590858644,-2097.86,0.00047123,120]
[356513602,1742590858689,-1632.48,0.00047123,120]
[356513603,1742590858736,-500.0,0.00047123,120]
[356513604,1742590858781,-730.44,0.00047123,120]
[356513605,1742590858825,-843.94,0.00047123,120]
[356513606,1742590858871,-243.24,0.00047123,120]
[356513607,1742590858916,-500.0,0.00047123,120]
[356513608,1742590858961,-500.0,0.00047123,120]
[356513609,1742590859004,-500.0,0.00047123,120]
[356513610,1742590859048,-2646.71,0.00047123,120]
[356513611,1742590859093,-500.0,0.00047123,120]
[356513612,1742590859142,-723.47,0.00047123,120]
[356513613,1742590859189,-500.0,0.00047123,120]
[356513614,1742590859233,-500.0,0.00047123,120]
[356513615,1742590859277,-5764.63,0.00047123,120]
[356513616,1742590859320,-1046.09,0.00047123,120]
[356513617,1742590859367,-500.0,0.00047123,120]
[356513618,1742590859417,-500.0,0.00047123,120]
[356513619,1742590859466,-500.0,0.00047123,120]
[356513620,1742590859515,-538.05,0.00047123,120]
[356513621,1742590859563,-500.0,0.00047123,120]
[356513622,1742590859611,-500.0,0.00047123,120]
[356513623,1742590859660,-604.26,0.00047123,120]
[356513624,1742590859709,-500.0,0.00047123,120]
[356513625,1742590859756,-506.97,0.00047123,120]
[356513626,1742590859804,-199.87963541,0.00047123,120]
[356513627,1742590859851,-2895.4,0.00047123,120]
[356513628,1742590859899,-500.0,0.00047123,120]
[356513629,1742590859945,-500.0,0.00047123,120]
[356513630,1742590859993,-500.0,0.00047123,120]
[356513631,1742590860041,-500.0,0.00047123,120]
[356513632,1742590860088,-500.0,0.00047123,120]
[356513633,1742590860336,-500.0,0.00047123,120]
[356513634,1742590860369,-500.0,0.00047123,120]
[356513635,1742590860401,-522.71,0.00047123,120]
[356513636,1742590860433,-626.77,0.00047123,120]
[356513637,1742590860464,-664.93,0.00047123,120]
[356513638,1742590860495,-2572.21,0.00047123,120]
[356513639,1742590860526,-3733.51,0.00047123,120]
[356513640,1742590860557,-500.0,0.00047123,120]
[356513641,1742590860588,-500.0,0.00047123,120]
[356513642,1742590860619,-787.13,0.00047123,120]
[356513643,1742590860651,-500.0,0.00047123,120]
[356513644,1742590860684,-830.66,0.00047123,120]
[356513645,1742590860715,-1494.48,0.00047123,120]
[356513646,1742590860748,-500.0,0.00047123,120]
[356513647,1742590860779,-2056.83,0.00047123,120]
[356513648,1742590860810,-500.0,0.00047123,120]
[356513649,1742590860843,-500.0,0.00047123,120]
[356513650,1742590860874,-505.69882407,0.00047123,120]
[356513651,1742590860906,-500.0,0.00047123,120]
[356513652,1742590860938,-500.0,0.00047123,120]
[356513653,1742590860971,-500.0,0.00047123,120]
[356513654,1742590861003,-500.0,0.00047123,120]
[356513655,1742590861037,-500.0,0.00047123,120]
[356513656,1742590861076,-500.0,0.00047123,120]
[356513657,1742590861115,-1371.2,0.00047123,120]
[356513658,1742590861149,-988.17,0.00047123,120]
[356513659,1742590861183,-3991.25,0.00047123,120]
[356513660,1742590861217,-500.0,0.00047123,120]
[356513661,1742590861249,-500.0,0.00047123,120]
[356513662,1742590861281,-740.17,0.00047123,120]
[356513663,1742590861312,-500.0,0.00047123,120]
[356513664,1742590861346,-644.49,0.00047123,120]
[356513665,1742590861379,-500.0,0.00047123,120]
[356513666,1742590861413,-2679.63,0.00047123,120]
[356513667,1742590861449,-500.0,0.00047123,120]
[356513668,1742590861484,-681.51,0.00047123,120]
[356513669,1742590861517,-547.38,0.00047123,120]
[356513670,1742590861550,-500.0,0.00047123,120]
[356513671,1742590861583,-500.0,0.00047123,120]
[356513672,1742590861616,-500.0,0.00047123,120]
[356513673,1742590861647,-500.0,0.00047123,120]
[356513674,1742590861681,-500.0,0.00047123,120]
[356513675,1742590861715,-500.0,0.00047123,120]
[356513676,1742590861748,-500.0,0.00047123,120]
[356513677,1742590861781,-8207.86,0.00047123,120]
[356513678,1742590861814,-500.0,0.00047123,120]
[356513679,1742590861847,-500.0,0.00047123,120]
[356513680,1742590861878,-500.0,0.00047123,120]
[356513681,1742590861912,-559.49,0.00047123,120]
[356513682,1742590861944,-500.0,0.00047123,120]
[356513683,1742590861976,-500.0,0.00047123,120]
[356513684,1742590862007,-500.0,0.00047123,120]
[356513685,1742590862038,-664.67,0.00047123,120]
[356513686,1742590862071,-500.0,0.00047123,120]
[356513687,1742590862104,-5272.17,0.00047123,120]
[356513688,1742590862139,-500.0,0.00047123,120]
[356513689,1742590862170,-989.36,0.00047123,120]
[356513690,1742590862203,-523.82288212,0.00047123,120]
[356513691,1742590862235,-500.0,0.00047123,120]
[356513692,1742590862266,-500.0,0.00047123,120]
[356513693,1742590862298,-1000.0,0.00047123,120]
[356513694,1742590862328,-500.0,0.00047123,120]
[356513695,1742590862359,-857.61,0.00047123,120]
[356513696,1742590862391,-500.0,0.00047123,120]
[356513697,1742590862422,-500.0,0.00047123,120]
[356513698,1742590862454,-500.0,0.00047123,120]
[356513699,1742590862486,-500.0,0.00047123,120]
[356513700,1742590862518,-514.0765872,0.00047123,120]
[356513701,1742590862551,-500.0,0.00047123,120]
[356513702,1742590862585,-500.0,0.00047123,120]
[356513703,1742590862617,-500.0,0.00047123,120]
[356513704,1742590862650,-1518.33,0.00047123,120]
[356513705,1742590862681,-626.72,0.00047123,120]
[356513706,1742590862712,-500.0,0.00047123,120]
[356513707,1742590862742,-748.42,0.00047123,120]
[356513708,1742590862773,-500.0,0.00047123,120]
[356513709,1742590862804,-500.0,0.00047123,120]
[356513710,1742590862835,-500.0,0.00047123,120]
[356513711,1742590862864,-551.68,0.00047123,120]
[356513712,1742590862894,-908.94,0.00047123,120]
[356513713,1742590862924,-500.0,0.00047123,120]
[356513714,1742590862956,-500.0,0.00047123,120]
[356513715,1742590863140,-522.96,0.00047123,120]
[356513716,1742590863175,-500.0,0.00047123,120]
[356513717,1742590863212,-500.0,0.00047123,120]
[356513718,1742590863245,-500.0,0.00047123,120]
[356513719,1742590863280,-803.98,0.00047123,120]
[356513720,1742590863313,-500.0,0.00047123,120]
[356513721,1742590863347,-500.0,0.00047123,120]
[356513722,1742590863382,-500.0,0.00047123,120]
[356513723,1742590863415,-506.90501802,0.00047123,120]
[356513724,1742590863449,-500.0,0.00047123,120]
[356513725,1742590863484,-500.0,0.00047144,120]
[356513726,1742590863518,-500.0,0.00047144,120]
[356513727,1742590863551,-500.0,0.00047144,120]
[356513728,1742590863584,-500.0,0.00047144,120]
[356513729,1742590863618,-500.0,0.00047144,120]
[356513730,1742590863652,-500.0,0.00047144,120]
[356513731,1742590863686,-500.0,0.00047144,120]
[356513732,1742590863718,-500.0,0.00047144,120]
[356513733,1742590863753,-500.0,0.00047144,120]
[356513734,1742590863788,-500.0,0.00047144,120]
[356513735,1742590863824,-500.0,0.00047144,120]
[356513736,1742590863858,-500.0,0.00047144,120]
[356513737,1742590863895,-500.0,0.00047144,120]
[356513738,1742590863933,-500.0,0.00047144,120]
[356513739,1742590863970,-500.0,0.00047144,120]
[356513740,1742590864004,-500.0,0.00047144,120]
[356513741,1742590864035,-500.0,0.00047144,120]
[356513742,1742590864067,-500.0,0.00047144,120]
[356513743,1742590864097,-500.0,0.00047144,120]
[356513744,1742590864131,-500.0,0.00047144,120]
[356513745,1742590864161,-500.0,0.00047144,120]
[356513746,1742590864193,-500.0,0.00047144,120]
[356513747,1742590864224,-500.0,0.00047144,120]
[356513748,1742590864254,-500.0,0.00047144,120]
[356513749,1742590864284,-500.0,0.00047144,120]
[356513750,1742590864316,-500.0,0.00047144,120]
[356513751,1742590864347,-500.0,0.00047144,120]
[356513752,1742590864378,-500.0,0.00047144,120]
[356513753,1742590864408,-500.0,0.00047144,120]
[356513754,1742590864438,-500.0,0.00047144,120]
[356513755,1742590864468,-500.0,0.00047144,120]
[356513756,1742590864497,-500.0,0.00047144,120]
[356513757,1742590864528,-500.0,0.00047144,120]
[356513758,1742590864559,-500.0,0.00047144,120]
[356513759,1742590864588,-500.0,0.00047144,120]
[356513760,1742590864619,-500.0,0.00047144,120]
[356513761,1742590864650,-500.0,0.00047144,120]
[356513762,1742590864681,-500.0,0.00047144,120]
[356513763,1742590864712,-500.0,0.00047144,120]
[356513764,1742590864743,-500.0,0.00047144,120]
[356513765,1742590864773,-500.0,0.00047144,120]
[356513766,1742590864803,-500.0,0.00047144,120]
[356513767,1742590864834,-500.0,0.00047144,120]
[356513768,1742590864864,-500.0,0.00047144,120]
[356513769,1742590864895,-821.0,0.00047144,120]
[356513770,1742590864928,-151.15650745,0.00047297,120]
[356513771,1742590864959,-751.9,0.00047395,120]
[356513772,1742590864990,-671.31,0.00047395,120]
[356513773,1742590865021,-751.9,0.00047396,120]
[356513774,1742590865052,-751.9,0.00047396,120]
[356513775,1742590865084,-671.31,0.00047396,120]
[356513776,1742590865118,-671.31,0.00047396,120]
[356513777,1742590865149,-2533.5,0.00047396,120]
[356513778,1742590865183,-2533.5,0.00047396,120]
[356513779,1742590865216,-2533.5,0.00047396,120]
[356513780,1742590865249,-1623.31,0.00047396,120]
[356513781,1742590865282,-1623.31,0.00047396,120]
[356513782,1742590865315,-1623.31,0.00047396,120]
[356513783,1742590865347,-680.94,0.00047396,120]
[356513784,1742590865380,-680.94,0.00047396,120]
[356513785,1742590865413,-680.94,0.00047396,120]
[356513786,1742590865446,-502.11780685,0.00047397,120]
[356513787,1742590865480,-500.0,0.00047397,120]
[356513788,1742590865513,-548.96610158,0.00047397,120]
[356513789,1742590865546,-500.0,0.00047397,120]
[356513790,1742590865578,-500.0,0.00047397,120]
[356513791,1742590865610,-532.54530631,0.00047397,120]
[356513792,1742590865642,-500.0,0.00047397,120]
[356513793,1742590865674,-500.0,0.00047397,120]
[356513794,1742590865705,-500.0,0.00047397,120]
[356513795,1742590865737,-500.0,0.00047397,120]
[356513796,1742590865767,-500.0,0.00047397,120]
[356513797,1742590865798,-500.0,0.00047397,120]
[356513798,1742590865828,-500.0,0.00047397,120]
[356513799,1742590865859,-500.0,0.00047397,120]
[356513800,1742590865891,-500.0,0.00047397,120]
[356513801,1742590866078,-211.08914254,0.00047397,120]
[356513802,1742590866115,-500.0,0.00047397,120]
[356513803,1742590866150,-500.0,0.00047397,120]
[356513804,1742590866185,-500.0,0.00047397,120]
[356513805,1742590866219,-500.0,0.00047397,120]
[356513806,1742590866253,-500.0,0.00047397,120]
[356513807,1742590866287,-500.0,0.00047397,120]
[356513808,1742590866320,-500.0,0.00047397,120]
[356513809,1742590866353,-500.0,0.00047397,120]
[356513810,1742590866386,-500.0,0.00047397,120]
[356513811,1742590866419,-500.0,0.00047397,120]
[356513812,1742590866453,-500.0,0.00047397,120]
[356513813,1742590866489,-500.0,0.00047397,120]
[356513814,1742590866523,-500.0,0.00047397,120]
[356513815,1742590866555,-500.0,0.00047397,120]
[356513816,1742590866587,-500.0,0.00047397,120]
[356513817,1742590866620,-500.0,0.00047397,120]
[356513818,1742590866655,-500.0,0.00047397,120]
[356513819,1742590866687,-626.93,0.00047397,120]
[356513820,1742590866718,-500.0,0.00047397,120]
[356513821,1742590866750,-500.0,0.00047397,120]
[356513822,1742590866784,-500.0,0.00047397,120]
[356513823,1742590866816,-500.0,0.00047397,120]
[356513824,1742590866847,-373.89328696,0.00047397,120]
[356513825,1742590866878,-500.0,0.00047397,120]
[356513826,1742590866909,-500.0,0.00047397,120]
[356513827,1742590866939,-500.0,0.00047397,120]
[356513828,1742590866972,-500.0,0.00047397,120]
[356513829,1742590867005,-500.0,0.00047397,120]
[356513830,1742590867037,-531.76293992,0.00047397,120]
[356513831,1742590867072,-500.0,0.00047397,120]
[356513832,1742590867108,-500.0,0.00047397,120]
[356513833,1742590867144,-282.9709718,0.00047397,120]
[356513834,1742590867177,-500.0,0.00047397,120]
[356513835,1742590867212,-500.0,0.00047397,120]
[356513836,1742590867244,-500.0,0.00047397,120]
[356513837,1742590867278,-500.0,0.00047397,120]
[356513838,1742590867309,-500.0,0.00047397,120]
[356513839,1742590867341,-500.0,0.00047397,120]
[356513840,1742590867374,-500.0,0.00047397,120]
[356513841,1742590867407,-500.0,0.00047397,120]
[356513842,1742590867440,-500.0,0.00047397,120]
[356513843,1742590867473,-500.0,0.00047397,120]
[356513844,1742590867505,-502.90955179,0.00047397,120]
[356513845,1742590867535,-543.1345737,0.00047397,120]
[356513846,1742590867567,-500.0,0.00047397,120]
[356513847,1742590867597,-571.09,0.00047397,120]
[356513848,1742590867629,-233.35439113,0.00047397,120]
[356513849,1742590867662,-500.0,0.00047397,120]
[356513850,1742590867693,-500.0,0.00047397,120]
[356513851,1742590867725,-500.0,0.00047397,120]
[356513852,1742590867758,-500.0,0.00047397,120]
[356513853,1742590867788,-500.0,0.00047397,120]
[356513854,1742590867817,-500.0,0.00047397,120]
[356513855,1742590867849,-500.0,0.00047397,120]
[356513856,1742590867879,-501.20757712,0.00047397,120]
[356513857,1742590867910,-500.0,0.00047397,120]
[356513858,1742590867940,-500.0,0.00047397,120]
[356513859,1742590867972,-500.0,0.00047397,120]
[356513860,1742590868002,-500.0,0.00047397,120]
[356513861,1742590868031,-552.25249636,0.00047397,120]
[356513862,1742590868060,-500.0,0.00047397,120]
[356513863,1742590868094,-500.0,0.00047397,120]
[356513864,1742590868134,-500.0,0.00047397,120]
[356513865,1742590868169,-500.0,0.00047397,120]
[356513866,1742590868203,-500.0,0.00047397,120]
[356513867,1742590868235,-552.18,0.00047397,120]
[356513868,1742590868266,-500.0,0.00047397,120]
[356513869,1742590868299,-500.0,0.00047397,120]
[356513870,1742590868330,-500.0,0.00047397,120]
[356513871,1742590868360,-500.0,0.00047397,120]
[356513872,1742590868392,-500.0,0.00047397,120]
[356513873,1742590868424,-500.0,0.00047397,120]
[356513874,1742590868456,-500.0,0.00047397,120]
[356513875,1742590868489,-500.0,0.00047397,120]
[356513876,1742590868521,-500.0,0.00047397,120]
[356513877,1742590868553,-500.0,0.00047397,120]
[356513878,1742590868586,-500.0,0.00047397,120]
[356513879,1742590868619,-500.0,0.00047397,120]
[356513880,1742590868651,-500.0,0.00047397,120]
[356513881,1742590868684,-500.0,0.00047397,120]
[356513882,1742590868717,-500.0,0.00047397,120]
[356513883,1742590868749,-500.0,0.00047397,120]
[356513884,1742590868984,-500.0,0.00047397,120]
[356513885,1742590869016,-500.0,0.00047397,120]
[356513886,1742590869049,-500.0,0.00047397,120]
[356513887,1742590869081,-500.0,0.00047397,120]
[356513888,1742590869119,-500.0,0.00047397,120]
[356513889,1742590869151,-500.0,0.00047397,120]
[356513890,1742590869183,-500.0,0.00047397,120]
[356513891,1742590869214,-500.0,0.00047397,120]
[356513892,1742590869244,-500.0,0.00047397,120]
[356513893,1742590869276,-613.54,0.00047397,120]
[356513894,1742590869306,-500.0,0.00047397,120]
[356513895,1742590869338,-469.90635335,0.00047397,120]
[356513896,1742590869368,-500.0,0.00047397,120]
[356513897,1742590869399,-3031.23,0.00047397,120]
[356513898,1742590869430,-500.0,0.00047397,120]
[356513899,1742590869461,-500.0,0.00047397,120]
[356513900,1742590869491,-500.0,0.00047397,120]
[356513901,1742590869522,-500.0,0.00047397,120]
[356513902,1742590869557,-500.0,0.00047397,120]
[356513903,1742590869591,-500.0,0.00047397,120]
[356513904,1742590869628,-500.0,0.00047397,120]
[356513905,1742590869663,-500.0,0.00047397,120]
[356513906,1742590869698,-500.0,0.00047397,120]
[356513907,1742590869732,-500.0,0.00047397,120]
[356513908,1742590869763,-500.0,0.00047397,120]
[356513909,1742590869793,-585.21,0.00047397,120]
[356513910,1742590869823,-500.0,0.00047397,120]
[356513911,1742590869853,-500.0,0.00047397,120]
[356513912,1742590869884,-779.96,0.00047397,120]
[356513913,1742590869914,-511.15237657,0.00047397,120]
[356513914,1742590869944,-556.79,0.00047397,120]
[356513915,1742590869973,-521.40443845,0.00047397,120]
[356513916,1742590870004,-500.0,0.00047397,120]
[356513917,1742590870035,-500.0,0.00047397,120]
[356513918,1742590870066,-515.65251092,0.00047397,120]
[356513919,1742590870097,-545.26724263,0.00047397,120]
[356513920,1742590870134,-319.26779082,0.00047397,120]
[356513921,1742590870167,-500.0,0.00047397,120]
[356513922,1742590870198,-505.79626677,0.00047397,120]
[356513923,1742590870229,-500.0,0.00047397,120]
[356513924,1742590870260,-504.72885171,0.00047397,120]
[356513925,1742590870292,-519.25944364,0.00047397,120]
[356513926,1742590870323,-500.0,0.00047397,120]
[356513927,1742590870355,-588.11,0.00047397,120]
[356513928,1742590870384,-351.86562368,0.00047397,120]
[356513929,1742590870431,-500.0,0.00047397,120]
[356513930,1742590870465,-500.0,0.00047397,120]
[356513931,1742590870497,-500.0,0.00047397,120]
[356513932,1742590870530,-500.0,0.00047397,120]
[356513933,1742590870563,-500.0,0.00047397,120]
[356513934,1742590870597,-500.0,0.00047397,120]
[356513935,1742590870630,-500.0,0.00047397,120]
[356513936,1742590870662,-515.56158282,0.00047397,120]
[356513937,1742590870695,-500.49373621,0.00047397,120]
[356513938,1742590870728,-568.69854458,0.00047397,120]
[356513939,1742590870761,-632.53,0.00047397,120]
[356513940,1742590870800,-508.46608346,0.00047397,120]
[356513941,1742590870835,-500.0,0.00047397,120]
[356513942,1742590870869,-557.83,0.00047397,120]
[356513943,1742590870902,-500.0,0.00047397,120]
[356513944,1742590870935,-1613.87,0.00047397,120]
[356513945,1742590870967,-613.36265004,0.00047397,120]
[356513946,1742590870999,-500.0,0.00047397,120]
[356513947,1742590871030,-500.0,0.00047397,120]
[356513948,1742590871062,-545.2588186,0.00047397,120]
[356513949,1742590871096,-932.03,0.00047397,120]
[356513950,1742590871134,-500.0,0.00047397,120]
[356513951,1742590871167,-279.3956703,0.00047397,120]
[356513952,1742590871200,-500.0,0.00047397,120]
[356513953,1742590871232,-514.40464284,0.00047397,120]
[356513954,1742590871264,-559.2,0.00047397,120]
[356513955,1742590871297,-500.0,0.00047397,120]
[356513956,1742590871329,-504.34119785,0.00047397,120]
[356513957,1742590871361,-500.0,0.00047397,120]
[356513958,1742590871392,-262.12401226,0.00047397,120]
[356513959,1742590871423,-632.98,0.00047397,120]
[356513960,1742590871453,-535.31596415,0.00047397,120]
[356513961,1742590871483,-500.0,0.00047397,120]
[356513962,1742590871513,-500.0,0.00047397,120]
[356513963,1742590871543,-500.0,0.00047397,120]
[356513964,1742590871758,-500.0,0.00047397,120]
[356513965,1742590871812,-500.0,0.00047397,120]
[356513966,1742590871844,-500.0,0.00047397,120]
[356513967,1742590871876,-500.0,0.00047397,120]
[356513968,1742590871906,-386.97055143,0.00047397,120]
[356513969,1742590871937,-500.0,0.00047397,120]
[356513970,1742590871968,-500.0,0.00047397,120]
[356513971,1742590871998,-500.0,0.00047397,120]
[356513972,1742590872028,-519.11,0.00047397,120]
[356513973,1742590872059,-500.0,0.00047397,120]
[356513974,1742590872090,-500.0,0.00047397,120]
[356513975,1742590872122,-522.32235811,0.00047397,120]
[356513976,1742590872153,-500.0,0.00047397,120]
[356513977,1742590872182,-500.0,0.00047397,120]
[356513978,1742590872215,-500.0,0.00047397,120]
[356513979,1742590872244,-500.0,0.00047397,120]
[356513980,1742590872273,-500.0,0.00047397,120]
[356513981,1742590872303,-500.0,0.00047397,120]
[356513982,1742590872333,-500.0,0.00047397,120]
[356513983,1742590872364,-500.0,0.00047397,120]
[356513984,1742590872396,-500.0,0.00047397,120]
[356513985,1742590872429,-634.23345074,0.00047397,120]